Workbook

Sheet Узлы
A1: С электрическим догревателем: | D1: 2023-10-10
B2: Розничная цена | C2: Скидка | D2: Цена Гуд Вуд
A3: 1. Приточно-вытяжная установка Zenit Standart 300 Е с 2ступ рекуператором, электронагревателем, автоматикой | B3: 252000 | C3: 0.3 | D3: =B3*(1-C3) -> 176400
A4: Заслонка D160 с электроприводом и возвратной пружиной | B4: 20100 | C4: 0.3 | D4: =B4*(1-C4) -> 14070
A5: Блок охлаждения:
A6: NEW COOL-BOX i 160D-400 2,0 кВ | B6: 79000 | C6: 0.3 | D6: =B6*(1-C6) -> 55300
A7: ККБ NEW COOL-BOX k 2.0 | B7: 62000 | C7: 0.3 | D7: =B7*(1-C7) -> 43400
A8: Комплект фильтров для первого обслуживания (Фильтр карманный F5) | B8: 1800 | C8: 0.3 | D8: =B8*(1-C8) -> 1260
A9: Комбинированная приточно-вытяжная решётка 160D | B9: 7000 | C9: 0.3 | D9: =B9*(1-C9) -> 4900
A11: 1. Приточно-вытяжная установка Zenit 500 Standart EL/EL Е 2ст рекуператором, с электронагревателем, автоматикой | B11: 298000 | C11: 0.3 | D11: =B11*(1-C11) -> 208600
A12: Заслонка D200 с электроприводом и возвратной пружиной | B12: 20600 | C12: 0.3 | D12: =B12*(1-C12) -> 14420
A13: Блок охлаждения:
A14: NEW COOL-BOX i 200D-600 2,5 кВт | B14: 81000 | C14: 0.3 | D14: 56700
A15: ККБ NEW COOL-BOX k 2.5 | B15: 71000 | C15: 0.3 | D15: 49700
A16: Комплект фильтров для первого обслуживания (Фильтр карманный F5, комплект 2 шт.) | B16: 2000 | C16: 0.3 | D16: 1400
A17: Комбинированная приточно-вытяжная решётка 200D | B17: 8500 | C17: 0.3 | D17: 5950
A19: 1. Приточно-вытяжная установка Zenit 700 Standart EL/EL Е 2ст рекуператором, с электронагревателем, автоматикой | B19: 310000 | C19: 0.3 | D19: 217000
A20: Заслонка D250 с электроприводом и возвратной пружиной | B20: 23400 | C20: 0.3 | D20: 16380
A21: Блок охлаждения:
A22: NEW COOL-BOX i 250D-1000 3,5 кВт | B22: 106000 | C22: 0.3 | D22: 74200
A23: ККБ NEW COOL-BOX k 3.5 | B23: 92000 | C23: 0.3 | D23: 64400
A24: Комплект фильтров для первого обслуживания (Фильтр карманный F5, комплект 2 шт.) | B24: 2500 | C24: 0.3 | D24: 1750
A25: Комбинированная приточно-вытяжная решётка 250D | B25: 10000 | C25: 0.3 | D25: 7000
A27: 1. Приточно-вытяжная установка Zenit 350 HECO EL/EL Е с 3ступ рекуперацией с электронагревателем, автоматикой | B27: 265000 | C27: 0.3 | D27: 185500
A28: Заслонка D160 с электроприводом и возвратной пружиной | B28: 20100 | C28: 0.3 | D28: 14070
A29: Блок охлаждения:
A30: NEW COOL-BOX i 160D-400 2,0 кВ | B30: 79000 | C30: 0.3 | D30: 55300
A31: ККБ NEW COOL-BOX k 2.0 | B31: 62000 | C31: 0.3 | D31: 43400
A32: Комплект фильтров для первого обслуживания (Фильтр карманный F5) | B32: 1800 | C32: 0.3 | D32: 1260
A33: Комбинированная приточно-вытяжная решётка 160D | B33: 7000 | C33: 0.3 | D33: 4900
A35: 1. Приточно-вытяжная установка Zenit 550 HECO EL/EL E с рекуперацией с электронагревателем, автоматикой | B35: 295000 | C35: 0.3 | D35: 206500
A36: Заслонка D200 с электроприводом и возвратной пружиной | B36: 20600 | C36: 0.3 | D36: 14420
A37: Блок охлаждения:
A38: NEW COOL-BOX i 200D-600 2,5 кВт | B38: 81000 | C38: 0.3 | D38: 56700
A39: ККБ NEW COOL-BOX k 2.5 | B39: 71000 | C39: 0.3 | D39: 49700
A40: Комплект фильтров для первого обслуживания (Фильтр карманный F5, комплект 2 шт.) | B40: 2000 | C40: 0.3 | D40: 1400
A41: Комбинированная приточно-вытяжная решётка 200D | B41: 8500 | C41: 0.3 | D41: 5950
A43: 1. Приточно-вытяжная установка Zenit 750 HECO EL/EL E с рекуперацией с электронагревателем, автоматикой | B43: 468000 | C43: 0.3 | D43: 327600 | F43: 430000
A44: Заслонка D250 с электроприводом и возвратной пружиной | B44: 23400 | C44: 0.3 | D44: 16380 | F44: 16100
A45: Блок охлаждения:
A46: NEW COOL-BOX i 250D-1000 3,5 кВт | B46: 106000 | C46: 0.3 | D46: 74200 | F46: 80000
A47: ККБ NEW COOL-BOX k 3.5 | B47: 92000 | C47: 0.3 | D47: 64400 | F47: 87000
A48: Комплект фильтров для первого обслуживания (Фильтр карманный F5, комплект 2 шт.) | B48: 2750 | C48: 0.3 | D48: 1925 | F48: 2750
A49: Комбинированная приточно-вытяжная решётка 250D | B49: 10000 | C49: 0.3 | D49: 7000 | F49: 12350
A51: С водяным догревателем:
A52: 1. Приточно-вытяжная установка Zenit 700 Standart EL/EL W 2ст рекуператором, с водяным нагревателем и смесительным узлом, автоматикой | B52: 427000 | C52: 0.3 | D52: =B52*(1-C52) -> 298900
A53: Заслонка D250 с электроприводом и возвратной пружиной | B53: 20100 | C53: 0.3 | D53: =B53*(1-C53) -> 14070
A54: Блок охлаждения: | D54: =B54*0.7 -> 0
A55: NEW COOL-BOX i 250D-1000 3,5 кВт | B55: 106000 | C55: 0.3 | D55: =B55*(1-C55) -> 74200
A56: ККБ NEW COOL-BOX k 3.5 | B56: 92000 | C56: 0.3 | D56: =B56*(1-C56) -> 64400
A57: Блок увлажнителя:
A58: HumiBox Pump 3 | B58: 87000 | C58: 0.3 | D58: =B58*(1-C58) -> 60900
A59: HumiBox 1000 | B59: 129000 | C59: 0.3 | D59: =B59*(1-C59) -> 90300
A60: Комплект фильтров для первого обслуживания (Фильтр карманный F5, комплект 2 шт.) | B60: 2500 | C60: 0.3 | D60: =B60*(1-C60) -> 1750
A61: Комбинированная приточно-вытяжная решётка 250D | B61: 10000 | C61: 0.3 | D61: =B61*(1-C61) -> 7000
A63: 1. Приточно-вытяжная установка Zenit 550 HECO EL/EL W с рекуперацией с водяным нагревателем и смесительным узлом, автоматикой | B63: 420000 | C63: 0.3 | D63: =B63*(1-C63) -> 294000
A64: Заслонка D200 с электроприводом и возвратной пружиной | B64: 20600 | C64: 0.3 | D64: =B64*(1-C64) -> 14420
A65: Блок охлаждения:
A66: NEW COOL-BOX i 200D-600 2,5 кВт | B66: 81000 | C66: 0.3 | D66: =B66*(1-C66) -> 56700
A67: ККБ NEW COOL-BOX k 2.5 | B67: 71000 | C67: 0.3 | D67: =B67*(1-C67) -> 49700
A68: Блок увлажнителя:
A69: HumiBox Pump 3 | B69: 87000 | C69: 0.3 | D69: =B69*(1-C69) -> 60900
A70: HumiBox 600 | B70: 91000 | C70: 0.3 | D70: =B70*(1-C70) -> 63700
A71: Комплект фильтров для первого обслуживания (Фильтр карманный F5, комплект 2 шт.) | B71: 2000 | C71: 0.3 | D71: =B71*(1-C71) -> 1400
A72: Комбинированная приточно-вытяжная решётка 200D | B72: 8500 | C72: 0.3 | D72: =B72*(1-C72) -> 5950
A74: 1. Приточно-вытяжная установка Zenit 750 HECO EL/EL W с рекуперацией с электронагревателем, автоматикой | B74: 612000 | C74: 0.3 | D74: =B74*(1-C74) -> 428400
A75: Заслонка D250 с электроприводом и возвратной пружиной | B75: 23400 | C75: 0.3 | D75: =B75*(1-C75) -> 16380
A76: Блок охлаждения:
A77: NEW COOL-BOX i 250D-1000 3,5 кВт | B77: 106000 | C77: 0.3 | D77: =B77*(1-C77) -> 74200
A78: ККБ NEW COOL-BOX k 3.5 | B78: 92000 | C78: 0.3 | D78: =B78*(1-C78) -> 64400
A79: Блок увлажнителя:
A80: HumiBox Pump 3 | B80: 87000 | C80: 0.3 | D80: =B80*(1-C80) -> 60900
A81: HumiBox 1000 | B81: 129000 | C81: 0.3 | D81: =B81*(1-C81) -> 90300
A82: Комплект фильтров для первого обслуживания (Фильтр карманный F5, комплект 2 шт.) | B82: 2750 | C82: 0.3 | D82: =B82*(1-C82) -> 1925
A83: Комбинированная приточно-вытяжная решётка 250D | B83: 10000 | C83: 0.3 | D83: =B83*(1-C83) -> 7000
A85: Датчики СО2 и автоматика:
A86: Встроенный в установку датчик CO2 | B86: 9250 | C86: 0.3 | D86: =B86*(1-C86) -> 6475
A87: Встроенный в установку датчик Stereo VAV | B87: 8650 | C87: 0.3 | D87: 6055
A88: Встроенный в установку датчик VAV | B88: 5000 | C88: 0.3 | D88: 3500
A89: Пульт в сборе | B89: 22000 | C89: 0.3 | D89: 15400
A91: Воздуховод гофрированный 2-х слойный в бухте D75, 50м | B91: 25000 | C91: 0.2 | D91: =B91*(1-C91) -> 20000
A92: Муфты D75 для подключения диффузоров | B92: 350 | C92: 0.2 | D92: 280
A93: Фланец Schiberg d75 мм | B93: 500 | C93: 0.2 | D93: 400
A94: Заглушка Schiberg d75 | B94: 150 | C94: 0.2 | D94: 120
A95: Дроссель для гофрир. воздуховода Schiberg d75 | B95: 150 | C95: 0.2 | D95: 120
A96: Муфта соединительная Schiberg d75 - 300 руб | B96: 350 | C96: 0.2 | D96: 280
A97: Кронштейны для напольного/настенного крепления - (кронштейн настенный, 4 виброопоры, площадка крепежная) | B97: 5200 | C97: 0.2 | D97: 4160
A99: Комплект шумоглушителей и дроссельных клапанов:
A100: Заслонка 125 с приводом и возвратной пружиной | B100: 19300 | C100: =$C$91 -> 0.2 | D100: =B100*(1-C100) -> 15440 | E100: =SUM(D100:D104)/5 -> 17360
A101: Заслонка 160 с приводом и возвратной пружиной | B101: 20100 | C101: 0.2 | D101: =B101*(1-C101) -> 16080
A102: Заслонка 200 с приводом и возвратной пружиной | B102: 20600 | C102: 0.2 | D102: =B102*(1-C102) -> 16480
A103: Заслонка 250 с приводом и возвратной пружиной | B103: 23400 | C103: 0.2 | D103: =B103*(1-C103) -> 18720
A104: Заслонка 315 с приводом и возвратной пружиной | B104: 25100 | C104: 0.2 | D104: =B104*(1-C104) -> 20080
F105: Используемые ШГ
A106: Шумоглушитель для круглых каналов Д125/900 | B106: 5700 | C106: 0.2 | D106: =B106*(1-C106) -> 4560 | E106: =SUM(D106:D115)/10 -> 5896
A107: Шумоглушитель для круглых каналов Д160/900 | B107: 6700 | C107: 0.2 | D107: 5360
A108: Шумоглушитель для круглых каналов Д200/900 | B108: 7900 | C108: 0.2 | D108: 6320 | F108: =D108 -> 6320
A109: Шумоглушитель для круглых каналов Д250/900 | B109: 9400 | C109: 0.2 | D109: 7520 | F109: =D109 -> 7520
A110: Шумоглушитель для круглых каналов Д315/900 | B110: 13000 | C110: 0.2 | D110: 10400 | F110: =D110 -> 10400
A111: Шумоглушитель для круглых каналов Д125/600 | B111: 4100 | C111: 0.2 | D111: 3280
A112: Шумоглушитель для круглых каналов Д160/600 | B112: 4900 | C112: 0.2 | D112: 3920
A113: Шумоглушитель для круглых каналов Д200/600 | B113: 5700 | C113: 0.2 | D113: 4560
A114: Шумоглушитель для круглых каналов Д250/600 | B114: 6800 | C114: 0.2 | D114: 5440
A115: Шумоглушитель для круглых каналов Д315/600 | B115: 9500 | C115: 0.2 | D115: 7600
A117: Расходные материалы, крепёж на первый этап | D117: 4500 | E117: цена примерная со слов Виктора
A118: Электроматериал для подключения вент.установки | D118: =16500/4 -> 4125 | E118: узел электрики на ПНР /4 со слов Виктора
A119: Комплект из счёта *2 | D119: =$G$119 -> 19398 | E119: согласно счёта (см. правее) | G119: 19398 | H119: Шумоглушители, дроссельные клапаны, гибкие вставки 2 этап
A121: Коллектор (воздухораспределительная коробка) на 4-6 выходов | B121: 8400 | C121: 0.15 | D121: =B121*(1-C121) -> 7140 | E121: Письмо Турков от 05.10.2023
A122: Коллектор (воздухораспределительная коробка) на 8-10 выходов | B122: 9800 | C122: 0.15 | D122: =B122*(1-C122) -> 8330
A123: Коллектор (воздухораспределительная коробка) на 12 выходов | B123: 13800 | C123: 0.15 | D123: =B123*(1-C123) -> 11730
A124: Коллектор (воздухораспределительная коробка) на 16 выходов | B124: 18400 | C124: 0.15 | D124: =B124*(1-C124) -> 15640
A125: Коллектор (воздухораспределительная коробка) на 20 выходов | B125: 25000 | C125: 0.15 | D125: =B125*(1-C125) -> 21250
A127: Адаптеры для подключения плоских решеток (длина до 500) | B127: =5400+1700 -> 7100 | C127: 0.15 | D127: =B127*(1-C127) -> 6035 | E127: Оптимум Lx150x10
A128: Адаптеры для подключения плоских решеток (нестандарт длина 600-800) | B128: =7200+1700 -> 8900 | C128: 0.15 | D128: =B128*(1-C128) -> 7565 | E128: Оптимум Lx150x10
A130: Магистральные воздуховоды и фасонные изделия | B130: =$G$179 -> 34439 | D130: =B130 -> 34439 | E130: согласно счёта (см. правее ниже)
A131: Изоляция, крепеж, расходные материалы | B131: =$G$136 -> 21589 | D131: =B131 -> 21589 | E131: согласно ЗНО (см. правее ниже)
A133: Пленум SCHIBERG (для кругл. диффузоров) | B133: 4600 | C133: 0.15 | D133: =B133*(1-C133) -> 3910
A135: Установка круглого диффузора | D135: 3000 | E135: среднее значение
A136: Установка прямоугольной решётки (до 500мм) в адаптер, материал | B136: =9100 -> 9100 | C136: 0.15 | D136: =B136*(1-C136) -> 7735 | E136: Оптимум Lx150x10 | G136: 21589 | H136: Изоляция 2 этап
A137: Нестандартная решётка | B137: 11880 | C137: 0.15 | D137: =B137*(1-C137) -> 10098
A139: Наружная накладная решетка 300*300 | D139: 1500 | E139: РэдВент Счет на оплату № 28725 от 31 октября 2023 г.
A140: Аэратор D250 на кровле, цвет стандарт | D140: 18000
G179: 34439 | H179: Оцинковка 2 этап

Sheet Работы
B1: Цена за единицу | C1: 0.2
A2: ОПЛАТА РАБОТ ПО ВЕНТИЛЯЦИИ прораб и бригада | B2: бригада | C2: прораб
A3: Монтаж вентиляционной установки (включая все подключения)+ пробный запуск с настройкой | B3: 22000 | C3: =CEILING(B3*$C$1,10) -> 4400
A4: Монтаж системы увлажнения воздуха (включая все подключения) + пробный запуск с настройкой | B4: 11000 | C4: =CEILING(B4*$C$1,10) -> 2200
A5: Монтаж датчика влажности (комплект)/пульта | B5: 1732 | C5: 350
A6: Установка стенового вентиля Out/in с проходными отверстиями | B6: 11000 | C6: 2200
A7: Установка наружной решетки с проходным отверстием | B7: 5000 | C7: =CEILING(B7*$C$1,10) -> 1000
A8: Установка аэратоора на кровле D200-D250 | B8: 7000 | C8: =CEILING(B8*$C$1,10) -> 1400
A10: Установка и подключение приточного/вытяжного диффузора | B10: 770 | C10: 160
A11: Прокладка гибких воздуховодов до приточного/вытяжного диффузора (комплект на диффузор) с установкой муфты | B11: 3850 | C11: 770 | D11: =B11*0.2 -> 770 | E11: "Вент точка"
A12: Монтаж круглого диффузора в адаптер | B12: 600 | C12: 120
A13: Монтаж прямоугольной решетки в адаптер | B13: 500 | C13: 100
A14: Монтаж нестандартной прямоугольной решетки в адаптер | B14: =B13*1.5 -> 750 | C14: 150
A15: Установка распределительной коробки и подключение воздуховодов | B15: 3300 | C15: 660
A16: Прокладка трассы от установки до распределительной коробки (комплект) | B16: 7150 | C16: 1430
A17: Установка шумоглушителя, дроссельного клапана | B17: 2750 | C17: 550
A18: ПНР ПВУ/ отдельный выезд + ГСМ | B18: 13750 | C18: 2750
A19: ПНР увлажнителя/ совместно с ПВУ | B19: 3850 | C19: 770
A20: Алмазное бурение | B20: 11000 | C20: 2200
A21: ГСМ | B21: 1500 | C21: 300
A22: Уборка мусора, наведение порядка на территории | B22: 1500 | C22: 300
A23: Вывоз мусора с объекта своими силами | B23: 2500 | C23: 500
A24: Разгрузо-погрузочные работы (скрытые и котельная) | B24: 1500 | C24: 300
A25: Обклейка тепло-шумоизоляцией (до 10м трасс) | B25: 1500 | C25: 300
A26: Расходные материалы, амортизация | B26: 5000 | C26: 5000
A27: Монтаж наружнего и внутреннего блоков кондиционирования | B27: 6000 | C27: 1200

Sheet Турков (Шаблон)
A2: =TODAY() -> 2023-11-29 | B2: Данный сметный расчёт действителен 7 календарных дней. По истечению срока, цены могут быть изменены.
A3: Сметный расчет Вентиляция 1эт ИД
A4: Приточно-вытяжная вентиляция
A5: Материалы/услуги | B5: Описание | C5: Кол-во | D5: Ед.изм | E5: Мат-ал, руб | F5: Работа, руб | G5: Итого, руб | H5: k = (1-рента) | I5: Материал | J5: Бригада | K5: Прораб | L5: Итого | M5: Рента
A7: Первый этап | B7: Воздуховод гофрированный 2-х слойный в бухте 50м | C7: 3 | D7: бухт | E7: =I7/H7*$J$88 -> 85714.28571 | G7: =E7+F7 -> 85714.28571 | H7: 0.7 | I7: =C7*Узлы!D91 -> 60000 | L7: =SUM(I7:K7) -> 60000 | M7: =IF(G7=0,"",(G7-I7)/G7) -> 0.3
B8: Комплект прокладок, муфт, заглушек для гофрированного воздуховода (на 1 выход) | C8: 26 | D8: шт | E8: 44571.42857 | G8: 44571.42857 | H8: 0.7 | I8: =C8*(Узлы!D92+Узлы!D93+Узлы!D94+Узлы!D95+Узлы!D96) -> 31200 | L8: =SUM(I8:K8) -> 31200 | M8: =IF(G8=0,"",(G8-I8)/G8) -> 0.3
B9: Коллектор (воздухораспределительная коробка) на 6 выходов | D9: шт | E9: 0 | G9: 0 | H9: 0.7 | I9: =C9*Узлы!D121 -> 0 | J9: =C9*Работы!$B$15 -> 0 | K9: =J9*20% -> 0 | L9: 0
B10: Коллектор (воздухораспределительная коробка) на 8-10 выходов | D10: шт | E10: 0 | G10: =E10+F10 -> 0 | H10: 0.7 | I10: =C10*Узлы!D122 -> 0 | J10: =C10*Работы!$B$15 -> 0 | K10: 0 | L10: =SUM(I10:K10) -> 0 | M10: =IF(G10=0,"",(G10-I10)/G10) -> 
B11: Коллектор (воздухораспределительная коробка) на 12 выходов | C11: 1 | D11: шт | E11: 16757.14286 | G11: 16757.14286 | H11: 0.7 | I11: =C11*Узлы!D123 -> 11730 | J11: =C11*Работы!$B$15 -> 3300 | K11: 660 | L11: 15690 | M11: 0.3
B12: Коллектор (воздухораспределительная коробка) на 16 выходов | C12: 1 | D12: шт | E12: 22342.85714 | G12: 22342.85714 | H12: 0.7 | I12: =C12*Узлы!D124 -> 15640 | J12: =C12*Работы!$B$15 -> 3300 | K12: 660 | L12: 19600 | M12: 0.3
B13: Коллектор (воздухораспределительная коробка) на 20 выходов | D13: шт | E13: 0 | G13: 0 | H13: 0.7 | I13: =C13*Узлы!D125 -> 0 | J13: =C13*Работы!$B$15 -> 0 | K13: 0 | L13: 0
B14: Муфты D125 для подключения диффузоров (монтаж трасс воздуховодов) | C14: 1 | D14: шт | E14: 5585.714286 | G14: 5585.714286 | H14: 0.7 | I14: =C14*Узлы!D133 -> 3910 | J14: =C14*Работы!B11 -> 3850 | K14: 770 | L14: 8530 | M14: 0.3
B15: Адаптеры для подключения плоских решеток (длина до 500) | C15: 11 | D15: шт | E15: 94835.71429 | G15: 94835.71429 | H15: 0.7 | I15: =C15*Узлы!D127 -> 66385 | J15: =C15*Работы!B11 -> 42350 | K15: 8470 | L15: 117205 | M15: 0.3
B16: Расходные материалы, крепёж | C16: 1 | D16: шт | E16: 6428.571429 | G16: 6428.571429 | H16: 0.7 | I16: =C16*Узлы!D117 -> 4500 | L16: =SUM(I16:K16) -> 4500 | M16: 0.3
A17: Монтаж системы вентиляции 1 этап | F17: =SUM(J7:K16)/0.5*$K$88*1.5 -> 190080 | L17: 0 | M17: =IF(F17=0,"",(F17-SUM(J7:K16))/F17) -> 0.6666666667
A18: Второй этап | B18: 1. Приточно-вытяжная установка Zenit 500 Standart EL/EL Е 2ст рекуператором, с электронагревателем, автоматикой | C18: 1 | D18: шт | E18: =I18/H18*$J$88 -> 298000 | G18: =E18+F18 -> 298000 | H18: 0.7 | I18: =C18*Узлы!D11 -> 208600 | J18: =C18*Работы!B3 -> 22000 | K18: =J18*20% -> 4400 | L18: 235000 | M18: =IF(G18=0,"",(G18-I18)/G18) -> 0.3
B19: Заслонка D200 с электроприводом и возвратной пружиной | C19: 2 | D19: шт | E19: 41200 | G19: =E19+F19 -> 41200 | H19: 0.7 | I19: =C19*Узлы!D12 -> 28840 | L19: 28840 | M19: =IF(G19=0,"",(G19-I19)/G19) -> 0.3
B20: Блок охлаждения 2,5кВт: | D20: шт | E20: 0 | G20: 0 | H20: 0.7 | I20: =C20*(Узлы!D14+Узлы!D15) -> 0 | L20: 0
B21: NEW COOL-BOX i 200D-600 2,5 кВт | D21: шт | E21: 0 | G21: 0 | H21: 0.7 | I21: =C21*N21*$I$2 -> 0 | L21: 0
B22: ККБ NEW COOL-BOX k 2.5 | D22: шт | E22: 0 | G22: 0 | H22: 0.7 | I22: =C22*N22*$I$2 -> 0 | L22: 0
B23: Комплект фильтров для первого обслуживания (Фильтр карманный F5, комплект 2 шт.) | C23: 1 | D23: шт | E23: 2000 | G23: 2000 | H23: 0.7 | I23: =C23*Узлы!D16 -> 1400 | L23: 1400 | M23: 0.3
B24: Комбинированная приточно-вытяжная решётка 200D | C24: 1 | D24: шт | E24: 8500 | G24: 8500 | H24: 0.7 | I24: =C24*Узлы!D17 -> 5950 | J24: =C24*Работы!B6 -> 11000 | K24: =J24*20% -> 2200 | L24: 19150 | M24: =IF(G24=0,"",(G24-I24)/G24) -> 0.3
B25: 1. Приточно-вытяжная установка Zenit 700 Standart EL/EL Е 2ст рекуператором, с электронагревателем, автоматикой | D25: шт | E25: 0 | G25: 0 | H25: 0.7 | I25: =C25*Узлы!D19 -> 0 | J25: =C25*Работы!B3 -> 0 | K25: =J25*20% -> 0 | L25: 0
B26: Заслонка D250 с электроприводом и возвратной пружиной | D26: шт | E26: 0 | G26: 0 | H26: 0.7 | I26: =C26*Узлы!D20 -> 0 | L26: 0
B27: Блок охлаждения 3,5кВт: | D27: шт | E27: 0 | G27: 0 | H27: 0.7 | I27: =C27*(Узлы!D22+Узлы!D23) -> 0 | L27: 0
B28: NEW COOL-BOX i 250D-1000 3,5 кВт | D28: шт | E28: 0 | G28: 0 | H28: 0.7 | I28: =C28*Узлы!D22 -> 0 | L28: 0
B29: ККБ NEW COOL-BOX k 3.5 | D29: шт | E29: 0 | G29: 0 | H29: 0.7 | I29: =C29*Узлы!D23 -> 0 | L29: 0
B30: Комплект фильтров для первого обслуживания (Фильтр карманный F5, комплект 2 шт.) | D30: шт | E30: 0 | G30: 0 | H30: 0.7 | I30: =C30*Узлы!D24 -> 0 | L30: 0
B31: Комбинированная приточно-вытяжная решётка 250D | D31: шт | E31: 0 | G31: 0 | H31: 0.7 | I31: =C31*Узлы!D25 -> 0 | J31: =C31*Работы!B6 -> 0 | K31: =J31*20% -> 0 | L31: 0
B32: 1. Приточно-вытяжная установка Zenit 350 HECO EL/EL Е с 3ступ рекуперацией с электронагревателем, автоматикой | D32: шт | E32: 0 | G32: 0 | H32: 0.7 | I32: =C32*Узлы!D27 -> 0 | J32: =C32*Работы!B3 -> 0 | K32: =J32*20% -> 0 | L32: 0
B33: Заслонка D160 с электроприводом и возвратной пружиной | D33: шт | E33: 0 | G33: 0 | H33: 0.7 | I33: =C33*Узлы!D28 -> 0 | L33: 0
B34: Блок охлаждения 2,0кВт: | D34: шт | E34: 0 | G34: 0 | H34: 0.7 | I34: =C34*(Узлы!D30+Узлы!D31) -> 0 | L34: 0
B35: NEW COOL-BOX i 160D-400 2,0 кВ | D35: шт | E35: 0 | G35: 0 | H35: 0.7 | I35: =C35*Узлы!D30 -> 0 | L35: 0
B36: ККБ NEW COOL-BOX k 2.0 | D36: шт | E36: 0 | G36: 0 | H36: 0.7 | I36: =C36*Узлы!D31 -> 0 | L36: 0
B37: Комплект фильтров для первого обслуживания (Фильтр карманный F5) | D37: шт | E37: 0 | G37: 0 | H37: 0.7 | I37: =C37*Узлы!D32 -> 0 | L37: 0
B38: Комбинированная приточно-вытяжная решётка 160D | D38: шт | E38: 0 | G38: 0 | H38: 0.7 | I38: =C38*Узлы!D33 -> 0 | J38: =C38*Работы!B6 -> 0 | K38: =J38*20% -> 0 | L38: 0
B39: 1. Приточно-вытяжная установка Zenit 550 HECO EL/EL E с рекуперацией с электронагревателем, автоматикой | D39: шт | E39: 0 | G39: 0 | H39: 0.7 | I39: =C39*Узлы!D35 -> 0 | J39: =C39*Работы!B3 -> 0 | K39: =J39*20% -> 0 | L39: 0
B40: Заслонка D200 с электроприводом и возвратной пружиной | D40: шт | E40: 0 | G40: 0 | H40: 0.7 | I40: =C40*Узлы!D36 -> 0 | L40: 0
B41: Блок охлаждения 2,5кВт: | D41: шт | E41: 0 | G41: 0 | H41: 0.7 | I41: =C41*(Узлы!D38+Узлы!D39) -> 0 | L41: 0
B42: NEW COOL-BOX i 200D-600 2,5 кВт | D42: шт | E42: 0 | G42: 0 | H42: 0.7 | I42: =C42*Узлы!D38 -> 0 | L42: 0
B43: ККБ NEW COOL-BOX k 2.5 | D43: шт | E43: 0 | G43: 0 | H43: 0.7 | I43: =C43*Узлы!D39 -> 0 | L43: 0
B44: Комплект фильтров для первого обслуживания (Фильтр карманный F5, комплект 2 шт.) | D44: шт | E44: 0 | G44: 0 | H44: 0.7 | I44: =C44*Узлы!D40 -> 0 | L44: 0
B45: Комбинированная приточно-вытяжная решётка 200D | D45: шт | E45: 0 | G45: 0 | H45: 0.7 | I45: =C45*Узлы!D41 -> 0 | J45: =C45*Работы!B6 -> 0 | K45: =J45*20% -> 0 | L45: 0
B46: 1. Приточно-вытяжная установка Zenit 750 HECO EL/EL E с рекуперацией с электронагревателем, автоматикой | D46: шт | E46: 0 | G46: 0 | H46: 0.7 | I46: =C46*Узлы!D43 -> 0 | J46: =C46*Работы!B3 -> 0 | K46: =J46*20% -> 0 | L46: 0
B47: Заслонка D250 с электроприводом и возвратной пружиной | D47: шт | E47: 0 | G47: 0 | H47: 0.7 | I47: =C47*Узлы!D44 -> 0 | L47: 0
B48: Блок охлаждения 3,5кВт: | D48: шт | E48: 0 | G48: 0 | H48: 0.7 | I48: =C48*(Узлы!D46+Узлы!D47) -> 0 | L48: 0
B49: NEW COOL-BOX i 250D-1000 3,5 кВт | D49: шт | E49: 0 | G49: 0 | H49: 0.7 | I49: =C49*Узлы!D46 -> 0 | L49: 0
B50: ККБ NEW COOL-BOX k 3.5 | D50: шт | E50: 0 | G50: 0 | H50: 0.7 | I50: =C50*Узлы!D47 -> 0 | L50: 0
B51: Комплект фильтров для первого обслуживания (Фильтр карманный F5, комплект 2 шт.) | D51: шт | E51: 0 | G51: 0 | H51: 0.7 | I51: =C51*Узлы!D48 -> 0 | L51: 0
B52: Комбинированная приточно-вытяжная решётка 250D | D52: шт | E52: 0 | G52: 0 | H52: 0.7 | I52: =C52*Узлы!D49 -> 0 | J52: =C52*Работы!B6 -> 0 | K52: =J52*20% -> 0 | L52: 0
B53: =Узлы!A139 -> Наружная накладная решетка 300*300 | C53: 1 | D53: шт | E53: =I53/H53*$J$88 -> 2142.857143 | G53: =E53+F53 -> 2142.857143 | H53: 0.7 | I53: =C53*Узлы!D139 -> 1500 | J53: =C53*Работы!B7 -> 5000 | K53: =J53*20% -> 1000 | L53: =SUM(I53:K53) -> 7500 | M53: 0.3
B54: =Узлы!A140 -> Аэратор D250 на кровле, цвет стандарт | C54: 1 | D54: шт | E54: =I54/H54*$J$88 -> 25714.28571 | G54: =E54+F54 -> 25714.28571 | H54: 0.7 | I54: =C54*Узлы!D140 -> 18000 | J54: =C54*Работы!B8 -> 7000 | K54: =J54*20% -> 1400 | L54: =SUM(I54:K54) -> 26400 | M54: =IF(G54=0,"",(G54-I54)/G54) -> 0.3
B55: Кронштейны для напольного/настенного крепления | C55: 1 | D55: компл. | E55: =I55/H55*$J$88 -> 5942.857143 | G55: =E55+F55 -> 5942.857143 | H55: 0.7 | I55: =C55*Узлы!D97 -> 4160 | L55: 4160 | M55: 0.3
B56: Электроподключения установки, пульта, заслонок | C56: 1 | D56: компл. | E56: 5892.857143 | G56: =E56+F56 -> 5892.857143 | H56: 0.7 | I56: =C56*Узлы!D118 -> 4125 | L56: 4125 | M56: 0.3
B57: Датчик СО2 | D57: шт | E57: 0 | G57: 0 | H57: 0.7 | I57: =C57*Узлы!D86 -> 0 | L57: 0
B58: Пульт в сборе | C58: 1 | D58: шт | E58: 22000 | G58: 22000 | H58: 0.7 | I58: =C58*Узлы!D89 -> 15400 | L58: 15400 | M58: 0.3
B59: Блок увлажнителя | D59: компл. | E59: 0 | G59: =E59+F59 -> 0 | H59: 0.7 | L59: =SUM(I59:K59) -> 0
B60: Комплект шумоглушителей и дроссельных клапанов (2шумоглишителя, 2клапана) | C60: 1 | D60: компл. | E60: 27711.42857 | G60: 27711.42857 | H60: 0.7 | I60: =C60*Узлы!D119 -> 19398 | J60: =C60*(Работы!B17*4) -> 11000 | K60: =J60*20% -> 2200 | L60: 32598 | M60: 0.3
B61: Магистральные воздуховоды и фасонные изделия | C61: 1 | D61: компл. | E61: 49198.57143 | G61: 49198.57143 | H61: 0.7 | I61: =C61*Узлы!D130 -> 34439 | J61: =SUM(C9:C13,C61)*Работы!B16 -> 21450 | K61: 4290 | L61: 60179 | M61: 0.3
B62: Изоляция, крепеж, расходные материалы | C62: 1 | D62: компл. | E62: 30841.42857 | G62: =E62+F62 -> 30841.42857 | H62: 0.7 | I62: =C62*Узлы!D131 -> 21589 | J62: =C62*(Работы!B25+Работы!B26) -> 6500 | K62: =J62*20% -> 1300 | L62: =SUM(I62:K62) -> 29389 | M62: =IF(G62=0,"",(G62-I62)/G62) -> 0.3
M63: =IF(G63=0,"",(G63-L63)/G63) -> 
A64: Проектирование | B64: разработка документов для монтажа системы вентиляции | C64: 1 | D64: Усл. | F64: 50000 | G64: =E64+F64 -> 50000 | H64: 0.8 | J64: 30000 | L64: =SUM(J64:K64) -> 30000 | M64: =IF(G64=0,"",(G64-L64)/G64) -> 0.4
A65: Монтаж системы вентиляции 2 этап | D65: Усл. | F65: =SUM(J18:K62)/0.5*$K$88 -> 201480 | L65: =SUM(J65:K65) -> 0 | M65: =IF(F65=0,"",(F65-SUM(J18:K63))/F65) -> 0.5
A66: Итого материал (1+2 этап): | F66: =SUM(E7:E63) -> 795380 | L66: =SUM(I7:I65) -> 556766 | M66: =IF(F66=0,"",(F66-L66)/F66) -> 0.3
A67: Работа: | F67: =SUM(F7:F65) -> 441560 | L67: =SUM(J7:K65) -> 194100
A68: Финишный этап (после отделки) | B68: Установка диффузора на адаптер | D68: шт | E68: =I68/H68*$J$88 -> 0 | G68: =E68+F68 -> 0 | H68: 0.7 | I68: =C68*Узлы!D135 -> 0 | J68: =C68*Работы!B12 -> 0 | K68: =J68*20% -> 0 | L68: =SUM(I68:K68) -> 0 | M68: =IF(G68=0,"",(G68-I68)/G68) -> 
B69: Установка прямоугольной решётки на адаптер | D69: шт | E69: =I69/H69*$J$88 -> 0 | G69: =E69+F69 -> 0 | H69: 0.7 | I69: =C69*Узлы!D136 -> 0 | J69: =C69*Работы!B13 -> 0 | K69: =J69*20% -> 0 | L69: =SUM(I69:K69) -> 0 | M69: =IF(G69=0,"",(G69-I69)/G69) -> 
B70: Установка нестандартной прямоугольной решётки на адаптер | D70: шт | E70: =I70/H70*$J$88 -> 0 | G70: =E70+F70 -> 0 | H70: 0.7 | I70: =C70*Узлы!D137 -> 0 | J70: =C70*Работы!B14 -> 0 | K70: =J70*20% -> 0 | L70: =SUM(I70:K70) -> 0
A71: Монтаж финишных устройств | B71: (рекомендуется делать силами бригады отделочников заказчика) | D71: Усл. | F71: =SUM(J68:K70)/H71*$K$88 -> 0 | G71: =C71*F71 -> 0 | H71: 0.5 | L71: =SUM(J71:K71) -> 0 | M71: =IF(F71=0,"",(F71-SUM(J68:K70))/F71) -> 
A72: 0 | F72: =SUM(E68:E70) -> 0 | L72: =SUM(I68:I70) -> 0
A73: Работа: | F73: =SUM(G71) -> 0 | L73: =SUM(J68:K70) -> 0
A75: Дополнительно
A76: Материалы/услуги | B76: Описание | C76: Кол-во | D76: Ед.изм | E76: Мат-ал, руб | F76: Работа, руб | G76: Итого, руб | I76: Материал | J76: Бригада | K76: Прораб | L76: Итого | M76: Рента
A77: Проходные отверстия в плите | B77: Алмазное сверление | C77: 2 | D77: шт. | F77: =IF(C77=0,0,IF(C77<4,11000,IF(C77>3,9000+2300*(C77-3)))) -> 11000 | G77: =F77+E77 -> 11000 | J77: 10000
A78: Подготовительные и накладные расходы | B78: Включают разработку комплекта документов для монтажа, проверку ОТК и приемку каждого этапа работ инженерами технического надзора, соблюдение стандарта компании | C78: 1 | D78: Усл. | F78: =51000 -> 51000 | G78: =F78*C78 -> 51000 | I78: =12500+(C68*700) -> 12500 | J78: =(1500+1500+1500)*2 -> 9000 | K78: =2500*2 -> 5000 | L78: =(5500*2)+6500 -> 17500
A79: Транспортные расходы | B79: Доставка оборудования и материалов на объект | C79: 1 | D79: усл. | F79: =L79/0.8 -> 37500 | G79: =F79 -> 37500 | L79: 30000
A80: Итого по смете: | F80: =SUM(F66:G67,G77:G79,F72:G73) -> 1336440 | I80: =SUM(I7:I65,I78,I68:I70) -> 569266 | J80: =SUM(J7:J65,J77:J79)+SUM(J68:J70)*$C$71 -> 185750 | K80: =SUM(K7:K65,K77:K79)+SUM(K68:K70)*$C$71 -> 32350 | L80: =SUM(L77:L79,I80:K80) -> 834866 | M80: =IF(F82=0,"",(F82-L80)/F82) -> 0.3753060369
A81: Скидка: | G81: 0
A82: Итого по смете со скидкой: | F82: =F80-G81 -> 1336440
A83: * При выполнении разводки под потолком необходимо добавить декоративный короб. При выполнении разводки в межэтажном перекрытии необходима дополнительная обрешётка.
A84: ** ПНР выполняется по факту готовности объекта | G84: =Узлы!D1 -> 2023-10-10
J85: Коэффициент для ренты
J87: Мат | K87: Раб
J88: 1 | K88: 1

Sheet Проект до 250м²
A2: Прайс-лист на проектные работы квартиры и дома до 250 м² | K2: Итоговое коммереское предложение
A3: 1 | B3: Предварительная стадия | F3: Сумма | K3: 1 | L3: Предварительная стадия | M3: шт | N3: 1 | O3: =F9 -> 10800
A4: 1.1 | B4: Сбор исходных данных | C4: шт | D4: 1 | E4: 3600 | F4: =E4*D4 -> 3600 | K4: 2 | L4: Раздел вентиляции | M4: м2 | N4: =D11 -> 109.29 | O4: =F18 -> 25016.46
A5: 1.2 | B5: Выезд на объект (в пределах МКАД) | C5: шт | D5: 0 | E5: 6000 | F5: =E5*D5 -> 0 | G5: Убирается из сметы при отсутвии потребности выезда | K5: 3 | L5: Раздел кондиционирования | M5: м2 | N5: =D23 -> 0 | O5: =F30 -> 0
A6: 1.3 | B6: Составление технического задания вентиляция | C6: шт | D6: 1 | E6: 4800 | F6: =E6*D6 -> 4800 | K6: 4 | L6: Раздел увлажнения | M6: м2 | N6: =D11 -> 109.29 | O6: =F32+F33 -> 0
A7: 1.4 | B7: Составление технического задания кондиционирование | C7: шт | D7: 0 | E7: 4800 | F7: =E7*D7 -> 0 | G7: Убирается из сметы при отсутвии кондиционирования | L7: ИТОГО по предложению | O7: =SUM(O3:O6) -> 35816.46
A8: 1.5 | B8: Отправка проекта и документов | C8: шт | D8: 1 | E8: 2400 | F8: =E8*D8 -> 2400
B9: ИТОГО по предварительной стадии: | F9: =SUM(F4:F8) -> 10800
A10: 2 | B10: Проект вентиляции | F10: Сумма
A11: 2.1 | B11: Расчет и утверждение воздухообмена | C11: м² | D11: =58.45+55.73-2.7-2.19 -> 109.29 | E11: =20*1.2 -> 24 | F11: =E11*D11 -> 2622.96
A12: 2.2 | B12: Подбор оборудования вентиляции | C12: м² | D12: 109.29 | E12: =20*1.2 -> 24 | F12: 2622.96
A13: 2.3 | B13: Планы системы вентиляции | C13: м² | D13: 109.29 | E13: =30*1.2 -> 36 | F13: 3934.44 | K13: Заказчику направлять только данный вариант КП, подробную смету только при доп. запросе заказчика
A14: 2.4 | B14: Спецификация вентиляции | C14: м² | D14: 109.29 | E14: =35*1.2 -> 42 | F14: 4590.18
A15: 2.5 | B15: Изометрическая схема вентиляция | C15: м² | D15: 109.29 | E15: =20*1.2 -> 24 | F15: 2622.96
A16: 2.6 | B16: Техническое задание на подключение силового электропитания и план автоматизации | C16: м² | D16: 109.29 | E16: =20*1.2 -> 24 | F16: 2622.96
A17: 2.7 | B17: Изготовление пояснительной записки | C17: шт | D17: 1 | E17: =5000*1.2 -> 6000 | F17: =E17*D17 -> 6000
B18: ИТОГО за раздел вентиляции: | F18: =SUM(F11:F17) -> 25016.46
A19: 3 | B19: Проект кондиционирования | F19: Сумма | G19: Указывать площадь ТОЛЬКО обслуживаемых помещений (Σ спален, детских, кабинетов)
A20: 3.1 | B20: Расчет теплопритоков | C20: м² | D20: 0 | E20: =30*1.2 -> 36 | F20: =D20*E20 -> 0
A21: 3.2 | B21: Подбор оборудования кондиционирования | C21: м² | D21: 0 | E21: =20*1.2 -> 24 | F21: =D21*E21 -> 0
A22: 3.3 | B22: Планы системы канального кондиционирования | C22: м² | D22: 0 | E22: =35*1.2 -> 42 | F22: 0 | G22: Убирается из сметы при отсутвии канального кондиционирования
A23: 3.4 | B23: Планы системы фреонового трубопровода и дренажа | C23: м² | D23: 0 | E23: =30*1.2 -> 36 | F23: 0
A24: 3.5 | B24: Спецификация вентразводки канального кондиционирования | C24: м² | D24: 0 | E24: =20*1.2 -> 24 | F24: 0 | G24: Убирается из сметы при отсутвии канального кондиционирования
A25: 3.6 | B25: Спецификация фреонового трубопровода и дренажа | C25: м² | D25: 0 | E25: =20*1.2 -> 24 | F25: 0
A26: 3.7 | B26: Изометрическая схема вентразводки канального кондиционирования | C26: м² | D26: 0 | E26: =20*1.2 -> 24 | F26: 0 | G26: Убирается из сметы при отсутвии канального кондиционирования
A27: 3.8 | B27: Изометрическая схема фреонового трубопровода и дренажа | C27: м² | D27: 0 | E27: =20*1.2 -> 24 | F27: 0
A28: 3.9 | B28: Техническое задание на подключение силового электропитания и автоматизации кондиционирования | C28: м² | D28: 0 | E28: =20*1.2 -> 24 | F28: 0
A29: 3.10 | B29: Изготовление пояснительной записки | C29: шт | D29: 0 | E29: =5000*1.2 -> 6000 | F29: 0
B30: ИТОГО за раздел кондиционирования: | F30: =SUM(F20:F29) -> 0 | G30: при потребности в центральном охладителе в проекте в ячейке площадь указывать 0 м², стоимость давать фиксированную 10 000 руб.
A31: 4 | B31: Проект увлажнения | F31: Сумма | G31: При расчете проекта увлажнения выбрать корректную площадь из предложенных вариантов
A32: 4.1 | B32: Объект менее 100 м² | C32: шт | D32: 0 | E32: 15000 | F32: =E32*D32 -> 0
A33: 4.2 | B33: Объект более 100 м² до 250 м² | C33: шт | D33: 0 | E33: 10000 | F33: =E33*D33 -> 0
B34: ИТОГО по предложению | F34: =(F9+F18+F30+F32+F33) -> 35816.46
A37: 5 | B37: ОПЦИОНАЛЬНО | F37: Сумма
A38: 5.1 | B38: Дополнительная рабочая встреча | C38: шт | D38: 1 | E38: =5000*1.2 -> 6000 | F38: =E38*D38 -> 6000
A39: 5.2 | B39: VAV система | C39: шт | D39: 1 | E39: =10000*1.2 -> 12000 | F39: =E39*D39 -> 12000
A40: 5.3 | B40: Выезд на объект до 50км от МКАД | C40: шт | D40: 1 | E40: =8000*1.2 -> 9600 | F40: =E40*D40 -> 9600
A42: При нестандартных объектах суммы разделов умножать на дополнительный коэффициент
A43: 1 | B43: Коммерческие и административные помещения | E43: 0.7
A44: 2 | B44: Фахверк | E44: 1.5
B47: Примечания:
A48: 1 | B48: Возможно изготовление монтажной схемы. Тогда позиции, общие данные, пояснительная записка, изометрические схемы вычитаются из стоимости проекта
A49: 2 | B49: Средняя цена за 1 м² | D49: м² | E49: руб/м²
B50: Проект вентиляции | D50: =D15 -> 109.29 | E50: =F18/D50 -> 228.8998079
B51: Проект канального кондиционирования | D51: =D22 -> 0 | E51: =F30/D51 -> 
B52: Проект настенного кондиционирования | D52: =D20 -> 0 | E52: =F30/D52 -> 
B53: Проект увлажнения | D53: =D11 -> 109.29 | E53: =(F32+F33)/D53 -> 0
A54: 3 | B54: ОБЩАЯ СТОИМОСТЬ | E54: =F34/D11 -> 327.719462

Sheet Проект до 500 м²
A2: Прайс-лист на проектные работы квартиры и дома от 250 м² до 500 м² | K2: Итоговое коммереское предложение
A3: 1 | B3: Предварительная стадия | F3: Сумма | K3: 1 | L3: Предварительная стадия | M3: шт | N3: 1 | O3: =F9 -> 15600
A4: 1.1 | B4: Сбор исходных данных | C4: шт | D4: 1 | E4: =3000*1.2 -> 3600 | F4: =E4*D4 -> 3600 | K4: 2 | L4: Раздел вентиляции | M4: м² | N4: =D11 -> 463 | O4: =F18 -> 79894.8
A5: 1.2 | B5: Выезд на объект (в пределах МКАД) | C5: шт | D5: 0 | E5: 8000 | F5: =E5*D5 -> 0 | G5: Убирается из сметы при отсутвии потребности выезда | K5: 3 | L5: Раздел кондиционирования | M5: м² | N5: =D20 -> 282 | O5: =F30 -> 47284.8
A6: 1.3 | B6: Составление технического задания вентиляция | C6: шт | D6: 1 | E6: =4000*1.2 -> 4800 | F6: =E6*D6 -> 4800 | K6: 4 | L6: Раздел увлажнения | M6: м² | N6: =D11 -> 463 | O6: =F32 -> 0
A7: 1.4 | B7: Составление технического задания кондиционирование | C7: шт | D7: 1 | E7: =4000*1.2 -> 4800 | F7: =E7*D7 -> 4800 | G7: Убирается из сметы при отсутвии кондиционирования | L7: ИТОГО по предложению | O7: =SUM(O3:O6) -> 142779.6
A8: 1.5 | B8: Отправка проекта и документов | C8: шт | D8: 1 | E8: =2000*1.2 -> 2400 | F8: =E8*D8 -> 2400
B9: ИТОГО по предварительной стадии: | F9: =SUM(F4:F8) -> 15600
A10: 2 | B10: Проект вентиляции | F10: Сумма
A11: 2.1 | B11: Расчет и утверждение воздухообмена | C11: м² | D11: 463 | E11: =18*1.2 -> 21.6 | F11: =E11*D11 -> 10000.8
A12: 2.2 | B12: Подбор оборудования вентиляции | C12: м² | D12: 463 | E12: =18*1.2 -> 21.6 | F12: =E12*D12 -> 10000.8 | K12: Заказчику направлять только данный вариант КП, подробную смету только при доп. запросе заказчика
A13: 2.3 | B13: Планы системы вентиляции | C13: м² | D13: 463 | E13: =28*1.2 -> 33.6 | F13: 15556.8
A14: 2.4 | B14: Спецификация вентиляции | C14: м² | D14: 463 | E14: =33*1.2 -> 39.6 | F14: 18334.8
A15: 2.5 | B15: Изометрическая схема вентиляция | C15: м² | D15: 463 | E15: =18*1.2 -> 21.6 | F15: 10000.8
A16: 2.6 | B16: Техническое задание на подключение силового электропитания и план автоматизации | C16: м² | D16: 463 | E16: =18*1.2 -> 21.6 | F16: 10000.8
A17: 2.7 | B17: Изготовление пояснительной записки | C17: шт | D17: 1 | E17: =5000*1.2 -> 6000 | F17: 6000
B18: ИТОГО за раздел вентиляции: | F18: =SUM(F11:F17) -> 79894.8
A19: 3 | B19: Проект кондиционирования* | F19: Сумма | G19: Указывать площадь ТОЛЬКО обслуживаемых помещений (Σ спален, детских кабинетов)
A20: 3.1 | B20: Расчет теплопритоков | C20: м² | D20: 282 | E20: =27*1.2 -> 32.4 | F20: =D20*E20 -> 9136.8
A21: 3.2 | B21: Подбор оборудования кондиционирования | C21: м² | D21: 282 | E21: =17*1.2 -> 20.4 | F21: =D21*E21 -> 5752.8
A22: 3.3 | B22: Планы системы канального кондиционирования | C22: м² | D22: 0 | E22: =32*1.2 -> 38.4 | F22: 0 | G22: Убирается из сметы при отсутвии канального кондиционирования
A23: 3.4 | B23: Планы системы фреонового трубопровода и дренажа | C23: м² | D23: 282 | E23: =27*1.2 -> 32.4 | F23: 9136.8
A24: 3.5 | B24: Спецификация вентразводки канального кондиционирования | C24: м² | D24: 0 | E24: =17*1.2 -> 20.4 | F24: 0 | G24: Убирается из сметы при отсутвии канального кондиционирования
A25: 3.6 | B25: Спецификация фреонового трубопровода и дренажа | C25: м² | D25: 282 | E25: =17*1.2 -> 20.4 | F25: 5752.8
A26: 3.7 | B26: Изометрическая схема вентразводки канального кондиционирования | C26: м² | D26: 0 | E26: =17*1.2 -> 20.4 | F26: 0 | G26: Убирается из сметы при отсутвии канального кондиционирования
A27: 3.8 | B27: Изометрическая схема фреонового трубопровода и дренажа | C27: м² | D27: 282 | E27: =17*1.2 -> 20.4 | F27: 5752.8
A28: 3.9 | B28: Техническое задание на подключение силового электропитания и автоматизации кондиционирования | C28: м² | D28: 282 | E28: =17*1.2 -> 20.4 | F28: 5752.8
A29: 3.10 | B29: Изготовление пояснительной записки | C29: шт | D29: 1 | E29: =5000*1.2 -> 6000 | F29: 6000
B30: ИТОГО за раздел кондиционирования: | F30: =SUM(F20:F29) -> 47284.8 | G30: при потребности в центральном охладителе в проекте в ячейке площадь указывать 0 м², стоимость давать фиксированную 15 000 руб.
A31: 4 | B31: Проект увлажнения | F31: Сумма
A32: 4.1 | B32: Объект от 250 м² до 500 м² | C32: шт | D32: 0 | E32: 10000 | F32: =E32*D32 -> 0
B33: ИТОГО по предложению | F33: =F9+F18+F30+F32 -> 142779.6
A35: 5 | B35: ОПЦИОНАЛЬНО | F35: Сумма
A36: 5.1 | B36: Дополнительная рабочая встреча | C36: шт | D36: 1 | E36: =5000*1.2 -> 6000 | F36: =E36*D36 -> 6000
A37: 5.2 | B37: VAV система | C37: шт | D37: 1 | E37: =10000*1.2 -> 12000 | F37: =E37*D37 -> 12000
A38: 5.3 | B38: Выезд на объект до 50км/МКАД | C38: шт | D38: 1 | E38: =8000*1.2 -> 9600 | F38: =E38*D38 -> 9600
A40: При нестандартных объектах суммы разделов умножать на дополнительный коэффициент
A41: 1 | B41: Коммерческие и административные помещения | E41: 0.7
A42: 2 | B42: Фахверк | E42: 1.5
B45: Примечания:
A46: 1 | B46: Возможно изготовление монтажной схемы. Тогда позиции, общие данные, пояснительная записка, изометрические схемы вычитаются из стоимости проекта
A47: 2 | B47: Средняя цена за 1 м² | D47: м² | E47: руб/м²
B48: Проект вентиляции | D48: =D15 -> 463 | E48: =F18/D48 -> 172.5589633
B49: Проект канального кондиционирования | D49: =D22 -> 0 | E49: =F30/D49 -> 
B50: Проект настенного кондиционирования | D50: =D20 -> 282 | E50: =F30/D50 -> 167.6765957
B51: Проект увлажнения | D51: =D11 -> 463 | E51: =F32/D51 -> 0
A52: 3 | B52: ОБЩАЯ СТОИМОСТЬ | E52: =F33/D11 -> 308.3792657

Sheet Проект более 500 м²
A2: Прайс-лист на проектные работы квартиры и дома более 500 м² | K2: Итоговое коммереское предложение
A3: 1 | B3: Предварительная стадия | F3: Сумма | K3: 1 | L3: Предварительная стадия | M3: шт | N3: 1 | O3: =F9 -> 15600
A4: 1.1 | B4: Сбор исходных данных | C4: шт | D4: 1 | E4: =3000*1.2 -> 3600 | F4: =E4*D4 -> 3600 | K4: 2 | L4: Раздел вентиляции | M4: м2 | N4: =D11 -> 860 | O4: =F18 -> 118488
A5: 1.2 | B5: Выезд на объект (в пределах МКАД) | C5: шт | D5: 0 | E5: 6000 | F5: =E5*D5 -> 0 | G5: Убирается из сметы при отсутвии потребности выезда | K5: 3 | L5: Раздел кондиционирования | M5: м2 | N5: =D20 -> 313 | O5: =F30 -> 48067.2
A6: 1.3 | B6: Составление технического задания вентиляция | C6: шт | D6: 1 | E6: =4000*1.2 -> 4800 | F6: =E6*D6 -> 4800 | K6: 4 | L6: Раздел увлажнения | M6: м2
A7: 1.4 | B7: Составление технического задания кондиционирование | C7: шт | D7: 1 | E7: =4000*1.2 -> 4800 | F7: =E7*D7 -> 4800 | G7: Убирается из сметы при отсутвии кондиционирования | L7: ИТОГО по предложению | O7: =SUM(O3:O6) -> 182155.2
A8: 1.5 | B8: Отправка проекта и документов | C8: шт | D8: 1 | E8: =2000*1.2 -> 2400 | F8: =E8*D8 -> 2400
B9: ИТОГО по предварительной стадии: | F9: =SUM(F4:F8) -> 15600
A10: 2 | B10: Проект вентиляции | F10: Сумма
A11: 2.1 | B11: Расчет и утверждение воздухообмена | C11: м² | D11: 860 | E11: =14*1.2 -> 16.8 | F11: =E11*D11 -> 14448
A12: 2.2 | B12: Подбор оборудования вентиляции | C12: м² | D12: 860 | E12: =14*1.2 -> 16.8 | F12: 14448
A13: 2.3 | B13: Планы системы вентиляции | C13: м² | D13: 860 | E13: =24*1.2 -> 28.8 | F13: 24768 | K13: Заказчику направлять только данный вариант КП, подробную смету только при доп. запросе заказчика
A14: 2.4 | B14: Спецификация вентиляции | C14: м² | D14: 860 | E14: =29*1.2 -> 34.8 | F14: 29928
A15: 2.5 | B15: Изометрическая схема вентиляция | C15: м² | D15: 860 | E15: =14*1.2 -> 16.8 | F15: 14448
A16: 2.6 | B16: Техническое задание на подключение силового электропитания и план автоматизации | C16: м² | D16: 860 | E16: =14*1.2 -> 16.8 | F16: 14448
A17: 2.7 | B17: Изготовление пояснительной записки | C17: шт | D17: 1 | E17: =5000*1.2 -> 6000 | F17: 6000
B18: ИТОГО за раздел вентиляции: | F18: =SUM(F11:F17) -> 118488
A19: 3 | B19: Проект кондиционирования | F19: Сумма | G19: Указывать площадь ТОЛЬКО обслуживаемых помещений (Σ спален, детских, кабинетов)
A20: 3.1 | B20: Расчет теплопритоков | C20: м² | D20: 313 | E20: =24*1.2 -> 28.8 | F20: =D20*E20 -> 9014.4
A21: 3.2 | B21: Подбор оборудования кондиционирования | C21: м² | D21: 313 | E21: =16*1.2 -> 19.2 | F21: 6009.6
A22: 3.3 | B22: Планы системы канального кондиционирования | C22: м² | D22: 0 | E22: =29*1.2 -> 34.8 | F22: 0 | G22: Убирается из сметы при отсутвии канального кондиционирования
A23: 3.4 | B23: Планы системы фреонового трубопровода и дренажа | C23: м² | D23: 313 | E23: =24*1.2 -> 28.8 | F23: 9014.4
A24: 3.5 | B24: Спецификация вентразводки канального кондиционирования | C24: м² | D24: 0 | E24: =16*1.2 -> 19.2 | F24: 0 | G24: Убирается из сметы при отсутвии канального кондиционирования
A25: 3.6 | B25: Спецификация фреонового трубопровода и дренажа | C25: м² | D25: 313 | E25: =16*1.2 -> 19.2 | F25: 6009.6
A26: 3.7 | B26: Изометрическая схема вентразводки канального кондиционирования | C26: м² | D26: 0 | E26: =16*1.2 -> 19.2 | F26: 0 | G26: Убирается из сметы при отсутвии канального кондиционирования
A27: 3.8 | B27: Изометрическая схема фреонового трубопровода и дренажа | C27: м² | D27: 313 | E27: =16*1.2 -> 19.2 | F27: 6009.6
A28: 3.9 | B28: Техническое задание на подключение силового электропитания и автоматизации кондиционирования | C28: м² | D28: 313 | E28: =16*1.2 -> 19.2 | F28: 6009.6
A29: 3.10 | B29: Изготовление пояснительной записки | C29: шт | D29: 1 | E29: =5000*1.2 -> 6000 | F29: =D29*E29 -> 6000
B30: ИТОГО за раздел кондиционирования: | F30: =SUM(F20:F29) -> 48067.2 | G30: при потребности в центральном охладителе в проекте, в ячейке площадь указывать 0 м², стоимость давать фиксированную 10 000 руб.
A31: 4 | B31: Проект увлажнения | F31: Сумма
A32: 4.1 | B32: Объект от 500 м² до 1000 м² | C32: шт | D32: 0 | E32: 10000 | F32: =E32*D32 -> 0
B33: ИТОГО по предложению | F33: =F9+F18+F30+F32 -> 182155.2
A35: 5 | B35: ОПЦИОНАЛЬНО | F35: Сумма
A36: 5.1 | B36: Дополнительная рабочая встреча | C36: шт | D36: 1 | E36: 5000 | F36: =E36*D36 -> 5000
A37: 5.4 | B37: VAV система | C37: шт | D37: 1 | E37: 10000 | F37: =E37*D37 -> 10000
A38: 5.5 | B38: Выезд на объект до 50км/МКАД | C38: шт | D38: 1 | E38: 8000 | F38: =E38*D38 -> 8000
A41: При нестандартных объектах суммы разделов умножать на дополнительный коэффициент
A42: 1 | B42: Коммерческие и административные помещения | E42: 0.7
A43: 2 | B43: Фахверк | E43: 1.5
B45: Примечания:
A46: 1 | B46: Возможно изготовление монтажной схемы. Тогда позиции, общие данные, пояснительная записка, изометрические схемы вычитаются из стоимости проекта
A47: 2 | B47: Средняя цена за 1 м² | D47: м² | E47: руб/м²
B48: Проект вентиляции | D48: =D11 -> 860 | E48: =F18/D48 -> 137.7767442
B49: Проект канального кондиционирования | D49: =D20 -> 313 | E49: =F30/D49 -> 153.5693291
B50: Проект настенного кондиционирования | D50: =D25 -> 313 | E50: =F30/D50 -> 153.5693291
B51: Проект увлажнения | D51: =D16 -> 860 | E51: =F32/D51 -> 0
A52: 3 | B52: ОБЩАЯ СТОИМОСТЬ | E52: =F33/D16 -> 211.8083721
